Department family,Entity,Date,Expense type,Expense area,Supplier,Transaction number,Amount
Department of Health,Leicestershire Partnership NHS Trust,01/12/21,Rent,"St Peters Health Center (Part 1st and 2nd floors) (P66, LPT)",LEICESTER LIFT CO,LEP1/SI0898,27433.45
Department of Health,Leicestershire Partnership NHS Trust,01/12/21,CHP Estates Management,Merlyn Vaz Centre (CHP),COMM HLTH PARTNERSHIPS LTD,0060221718,27744.56
Department of Health,Leicestershire Partnership NHS Trust,01/12/21,CHP Estates Management,Merlyn Vaz Centre (CHP),COMM HLTH PARTNERSHIPS LTD,0060221715,30935.19
Department of Health,Leicestershire Partnership NHS Trust,01/12/21,Payroll Deductions -Salary Sacrifice Cars Scheme,Balance Sheet Collection,TUSKER,52997,31715.29
Department of Health,Leicestershire Partnership NHS Trust,01/12/21,WIP Project Not in BS - Information Technology,Work in Progress,DELL COMPUTERS,7402763755,39300.00
Department of Health,Leicestershire Partnership NHS Trust,01/12/21,WIP Project Not in BS - Information Technology,Work in Progress,DELL COMPUTERS,7402763948,39300.00
Department of Health,Leicestershire Partnership NHS Trust,01/12/21,WIP Project Not in BS - Information Technology,Work in Progress,DELL COMPUTERS,7402763949,39300.00
Department of Health,Leicestershire Partnership NHS Trust,01/12/21,WIP Project Not in BS - Information Technology,Work in Progress,DELL COMPUTERS,7402763946,39300.00
Department of Health,Leicestershire Partnership NHS Trust,01/12/21,WIP Project Not in BS - Information Technology,Work in Progress,DELL COMPUTERS,7402763947,39300.00
Department of Health,Leicestershire Partnership NHS Trust,01/12/21,WIP Project Not in BS - Information Technology,Work in Progress,DELL COMPUTERS,7402763944,39300.00
Department of Health,Leicestershire Partnership NHS Trust,01/12/21,WIP Project Not in BS - Information Technology,Work in Progress,DELL COMPUTERS,7402764257,39300.00
Department of Health,Leicestershire Partnership NHS Trust,01/12/21,GP IT Expenditure,Area Team,DELL COMPUTERS,7402763964,28350.00
Department of Health,Leicestershire Partnership NHS Trust,01/12/21,Computer License  Fees,Finance Department,VERSION 1,INVSOL011493,37544.40
Department of Health,Leicestershire Partnership NHS Trust,02/12/21,Healthcare Services / Recharges from Non-NHS Bodies,Adult Eating Disorder Collaborative,ELLERN MEDE MOORGATE,OTM0096,37200.00
Department of Health,Leicestershire Partnership NHS Trust,02/12/21,Healthcare Services / Recharges from Non-NHS Bodies,Adult Eating Disorder Collaborative,ELLERN MEDE MOORGATE,OTM0084,36000.00
Department of Health,Leicestershire Partnership NHS Trust,02/12/21,External Data Processing / Storage,Records & information Governance,H COATES LTD/TA C&V DATA,4007373,31991.19
Department of Health,Leicestershire Partnership NHS Trust,02/12/21,Healthcare Services / Recharges from Non-NHS Bodies,Medical Trainees,UNIVERSITY OF LEICESTER,2230116272,151627.00
Department of Health,Leicestershire Partnership NHS Trust,03/12/21,Services / Recharges from NHS Trusts,Inter Unit I & E Distribution,UHL NHS TRUST (RWE),L0255663,64200.00
Department of Health,Leicestershire Partnership NHS Trust,03/12/21,WIP Project Not in BS - Information Technology,Work in Progress,DELL COMPUTERS,7402763757,39300.00
Department of Health,Leicestershire Partnership NHS Trust,03/12/21,WIP Project Not in BS - Information Technology,Work in Progress,DELL COMPUTERS,7402763756,39300.00
Department of Health,Leicestershire Partnership NHS Trust,03/12/21,GP IT Expenditure,Area Team,DELL COMPUTERS,7402763762,28350.00
Department of Health,Leicestershire Partnership NHS Trust,03/12/21,GP IT Expenditure,Area Team,DELL COMPUTERS,7402763032,28020.00
Department of Health,Leicestershire Partnership NHS Trust,03/12/21,GP IT Expenditure,Area Team,DELL COMPUTERS,7402763028,30420.00
Department of Health,Leicestershire Partnership NHS Trust,03/12/21,GP IT Expenditure,Area Team,DELL COMPUTERS,7402763029,28020.00
Department of Health,Leicestershire Partnership NHS Trust,03/12/21,GP IT Expenditure,Area Team,DELL COMPUTERS,7402763031,30420.00
Department of Health,Leicestershire Partnership NHS Trust,03/12/21,Nurse - Band 6 -Agency,CAMHS HUB / CAP,HCL SOCIAL CARE,HWSI0000935,9573.95
Department of Health,Leicestershire Partnership NHS Trust,03/12/21,Nurse - Band 6 -Agency,CAMHS Learning Disabilities and Outreach Team,HCL SOCIAL CARE,HWSI0000935,1620.16
Department of Health,Leicestershire Partnership NHS Trust,03/12/21,Nurse - Band 6 -Agency,CAMHS Outpatients,HCL SOCIAL CARE,HWSI0000935,2464.10
Department of Health,Leicestershire Partnership NHS Trust,03/12/21,Nurse - Band 6 -Agency,CAMHS Waiting List Monies,HCL SOCIAL CARE,HWSI0000935,18372.14
Department of Health,Leicestershire Partnership NHS Trust,03/12/21,Nurse - Band 6 -Agency,Crisis Response and Home Treatment,HCL SOCIAL CARE,HWSI0000935,2058.08
Department of Health,Leicestershire Partnership NHS Trust,03/12/21,NURSE - BAND 2 - AGENCY,CAMHS Inpatient Service,HCL NURSING,HNSI0000871,13014.35
Department of Health,Leicestershire Partnership NHS Trust,03/12/21,NURSE - BAND 5 - AGENCY,CAMHS Inpatient Service,HCL NURSING,HNSI0000871,4397.90
Department of Health,Leicestershire Partnership NHS Trust,03/12/21,NURSE - BAND 5 - AGENCY,CAMHS Learning Disabilities and Outreach Team,HCL NURSING,HNSI0000871,705.18
Department of Health,Leicestershire Partnership NHS Trust,03/12/21,NURSE - BAND 2 - AGENCY,CAMHS Outpatients,HCL NURSING,HNSI0000871,1933.32
Department of Health,Leicestershire Partnership NHS Trust,03/12/21,Nurse - Band 6 -Agency,CAMHS Waiting List Monies,HCL NURSING,HNSI0000871,5015.72
Department of Health,Leicestershire Partnership NHS Trust,03/12/21,NURSE - BAND 2 - AGENCY,Crisis Response and Home Treatment,HCL NURSING,HNSI0000871,1029.32
Department of Health,Leicestershire Partnership NHS Trust,03/12/21,NURSE - BAND 2 - AGENCY,Langley Ward ED Inpatient Service,HCL NURSING,HNSI0000871,465.47
Department of Health,Leicestershire Partnership NHS Trust,03/12/21,NURSE - BAND 5 - AGENCY,Langley Ward ED Inpatient Service,HCL NURSING,HNSI0000871,1066.46
Department of Health,Leicestershire Partnership NHS Trust,03/12/21,Nurse - Band 6 -Agency,AMH - Central Access Point,HCL NURSING,HNSI0000869,4860.01
Department of Health,Leicestershire Partnership NHS Trust,03/12/21,Nurse - Band 6 -Agency,Adult City East CMHT - Merlyn Vaz,HCL NURSING,HNSI0000869,2218.05
Department of Health,Leicestershire Partnership NHS Trust,03/12/21,Nurse - Band 6 -Agency,Adult County West Leicestershire CMHT,HCL NURSING,HNSI0000869,1069.97
Department of Health,Leicestershire Partnership NHS Trust,03/12/21,NURSE - BAND 2 - AGENCY,Agnes Unit Management,HCL NURSING,HNSI0000869,23648.49
Department of Health,Leicestershire Partnership NHS Trust,03/12/21,NURSE - BAND 5 - AGENCY,Agnes Unit Management,HCL NURSING,HNSI0000869,18454.02
Department of Health,Leicestershire Partnership NHS Trust,03/12/21,NURSE - BAND 2 - AGENCY,Ashby Ward (Bradgate Unit),HCL NURSING,HNSI0000869,444.22
Department of Health,Leicestershire Partnership NHS Trust,03/12/21,NURSE - BAND 5 - AGENCY,Ashby Ward (Bradgate Unit),HCL NURSING,HNSI0000869,4700.79
Department of Health,Leicestershire Partnership NHS Trust,03/12/21,NURSE - BAND 2 - AGENCY,Aston Ward (Bradgate Unit),HCL NURSING,HNSI0000869,6752.15
Department of Health,Leicestershire Partnership NHS Trust,03/12/21,NURSE - BAND 5 - AGENCY,Aston Ward (Bradgate Unit),HCL NURSING,HNSI0000869,5616.45
Department of Health,Leicestershire Partnership NHS Trust,03/12/21,NURSE - BAND 2 - AGENCY,Beaumont Ward - Bradgate Unit,HCL NURSING,HNSI0000869,2434.78
Department of Health,Leicestershire Partnership NHS Trust,03/12/21,NURSE - BAND 5 - AGENCY,Beaumont Ward - Bradgate Unit,HCL NURSING,HNSI0000869,2076.90
Department of Health,Leicestershire Partnership NHS Trust,03/12/21,NURSE - BAND 2 - AGENCY,Belvoir Psychiatric Intensive Care Unit,HCL NURSING,HNSI0000869,4144.83
Department of Health,Leicestershire Partnership NHS Trust,03/12/21,NURSE - BAND 5 - AGENCY,Belvoir Psychiatric Intensive Care Unit,HCL NURSING,HNSI0000869,6171.76
Department of Health,Leicestershire Partnership NHS Trust,03/12/21,NURSE - BAND 2 - AGENCY,Cedar (Willows),HCL NURSING,HNSI0000869,2708.79
Department of Health,Leicestershire Partnership NHS Trust,03/12/21,NURSE - BAND 5 - AGENCY,Cedar (Willows),HCL NURSING,HNSI0000869,469.65
Department of Health,Leicestershire Partnership NHS Trust,03/12/21,Nurse - Band 6 -Agency,City West CMHT MHSOP,HCL NURSING,HNSI0000869,1046.25
Department of Health,Leicestershire Partnership NHS Trust,03/12/21,NURSE - BAND 2 - AGENCY,Coleman Ward,HCL NURSING,HNSI0000869,3532.63
Department of Health,Leicestershire Partnership NHS Trust,03/12/21,NURSE - BAND 5 - AGENCY,Coleman Ward,HCL NURSING,HNSI0000869,6407.62
Department of Health,Leicestershire Partnership NHS Trust,03/12/21,NURSE - BAND 5 - AGENCY,Crisis Resolution,HCL NURSING,HNSI0000869,443.46
Department of Health,Leicestershire Partnership NHS Trust,03/12/21,Nurse - Band 6 -Agency,Crisis Resolution,HCL NURSING,HNSI0000869,855.97
Department of Health,Leicestershire Partnership NHS Trust,03/12/21,NURSE - BAND 2 - AGENCY,Griffin Ward (HPC),HCL NURSING,HNSI0000869,4392.71
Department of Health,Leicestershire Partnership NHS Trust,03/12/21,NURSE - BAND 5 - AGENCY,Griffin Ward (HPC),HCL NURSING,HNSI0000869,4692.48
Department of Health,Leicestershire Partnership NHS Trust,03/12/21,NURSE - BAND 2 - AGENCY,Heather Ward,HCL NURSING,HNSI0000869,3507.83
Department of Health,Leicestershire Partnership NHS Trust,03/12/21,NURSE - BAND 5 - AGENCY,Heather Ward,HCL NURSING,HNSI0000869,2869.41
Department of Health,Leicestershire Partnership NHS Trust,03/12/21,NURSE - BAND 2 - AGENCY,Kirby Ward,HCL NURSING,HNSI0000869,1280.93
Department of Health,Leicestershire Partnership NHS Trust,03/12/21,NURSE - BAND 5 - AGENCY,Kirby Ward,HCL NURSING,HNSI0000869,819.65
Department of Health,Leicestershire Partnership NHS Trust,03/12/21,NURSE - BAND 2 - AGENCY,Maple Ward,HCL NURSING,HNSI0000869,2287.30
Department of Health,Leicestershire Partnership NHS Trust,03/12/21,Nurse - Band 6 -Agency,Mental Health Liaison Team,HCL NURSING,HNSI0000869,1773.46
Department of Health,Leicestershire Partnership NHS Trust,03/12/21,NURSE - BAND 2 - AGENCY,Mill Lodge,HCL NURSING,HNSI0000869,7417.11
Department of Health,Leicestershire Partnership NHS Trust,03/12/21,NURSE - BAND 5 - AGENCY,Mill Lodge,HCL NURSING,HNSI0000869,3098.55
Department of Health,Leicestershire Partnership NHS Trust,03/12/21,NURSE - BAND 2 - AGENCY,Outreach,HCL NURSING,HNSI0000869,1145.52
Department of Health,Leicestershire Partnership NHS Trust,03/12/21,NURSE - BAND 2 - AGENCY,Phoenix Ward (HPC),HCL NURSING,HNSI0000869,1117.44
Department of Health,Leicestershire Partnership NHS Trust,03/12/21,NURSE - BAND 5 - AGENCY,Phoenix Ward (HPC),HCL NURSING,HNSI0000869,5319.99
Department of Health,Leicestershire Partnership NHS Trust,03/12/21,NURSE - BAND 2 - AGENCY,Place Of Safety Assessment Unit,HCL NURSING,HNSI0000869,213.23
Department of Health,Leicestershire Partnership NHS Trust,03/12/21,NURSE - BAND 5 - AGENCY,Place Of Safety Assessment Unit,HCL NURSING,HNSI0000869,554.85
Department of Health,Leicestershire Partnership NHS Trust,03/12/21,NURSE - BAND 2 - AGENCY,Stewart House,HCL NURSING,HNSI0000869,738.48
Department of Health,Leicestershire Partnership NHS Trust,03/12/21,NURSE - BAND 2 - AGENCY,Urgent Care Hub,HCL NURSING,HNSI0000869,273.49
Department of Health,Leicestershire Partnership NHS Trust,03/12/21,NURSE - BAND 2 - AGENCY,Watermead Ward (Bradgate Unit),HCL NURSING,HNSI0000869,1701.25
Department of Health,Leicestershire Partnership NHS Trust,03/12/21,NURSE - BAND 5 - AGENCY,Watermead Ward (Bradgate Unit),HCL NURSING,HNSI0000869,5608.53
Department of Health,Leicestershire Partnership NHS Trust,03/12/21,NURSE - BAND 2 - AGENCY,Welford Ward,HCL NURSING,HNSI0000869,1825.33
Department of Health,Leicestershire Partnership NHS Trust,03/12/21,NURSE - BAND 5 - AGENCY,Welford Ward,HCL NURSING,HNSI0000869,2738.69
Department of Health,Leicestershire Partnership NHS Trust,06/12/21,Crs_NHS_LT1y -Resus Inventory Supplied.,Balance Sheet Collection,SUPPLY CHAIN CO LTD,1122162941,32858.06
Department of Health,Leicestershire Partnership NHS Trust,06/12/21,WIP Project Not in BS - Information Technology,Work in Progress,DELL COMPUTERS,7402765170,28296.00
Department of Health,Leicestershire Partnership NHS Trust,06/12/21,Drugs,Adult City Drugs,JANSSEN-CILAG LTD,930788900,10118.36
Department of Health,Leicestershire Partnership NHS Trust,06/12/21,Drugs,Adult County Drugs,JANSSEN-CILAG LTD,930788900,15177.54
Department of Health,Leicestershire Partnership NHS Trust,07/12/21,Rent,"OSL House (P54, LPT)",CABOT TRUSTEES LTD,067,41700.00
Department of Health,Leicestershire Partnership NHS Trust,07/12/21,NURSE - BAND 2 - AGENCY,Beechwood Ward,HCL NURSING,HNSI0000862,4066.52
Department of Health,Leicestershire Partnership NHS Trust,07/12/21,NURSE - BAND 5 - AGENCY,Beechwood Ward,HCL NURSING,HNSI0000862,3333.54
Department of Health,Leicestershire Partnership NHS Trust,07/12/21,NURSE - BAND 3 - AGENCY,CHS Phlebotomy Service,HCL NURSING,HNSI0000862,187.04
Department of Health,Leicestershire Partnership NHS Trust,07/12/21,NURSE - BAND 5 - AGENCY,City Planned Care - East,HCL NURSING,HNSI0000862,11921.62
Department of Health,Leicestershire Partnership NHS Trust,07/12/21,NURSE - BAND 5 - AGENCY,City Planned Care - West,HCL NURSING,HNSI0000862,11809.26
Department of Health,Leicestershire Partnership NHS Trust,07/12/21,NURSE - BAND 2 - AGENCY,Clarendon Ward,HCL NURSING,HNSI0000862,2740.43
Department of Health,Leicestershire Partnership NHS Trust,07/12/21,NURSE - BAND 5 - AGENCY,Clarendon Ward,HCL NURSING,HNSI0000862,5651.85
Department of Health,Leicestershire Partnership NHS Trust,07/12/21,NURSE - BAND 2 - AGENCY,Coalville Snibston Ward,HCL NURSING,HNSI0000862,3464.56
Department of Health,Leicestershire Partnership NHS Trust,07/12/21,NURSE - BAND 5 - AGENCY,Coalville Snibston Ward,HCL NURSING,HNSI0000862,2685.23
Department of Health,Leicestershire Partnership NHS Trust,07/12/21,NURSE - BAND 2 - AGENCY,Coalville Ward 2,HCL NURSING,HNSI0000862,240.34
Department of Health,Leicestershire Partnership NHS Trust,07/12/21,NURSE - BAND 5 - AGENCY,Coalville Ward 2,HCL NURSING,HNSI0000862,2069.90
Department of Health,Leicestershire Partnership NHS Trust,07/12/21,NURSE - BAND 2 - AGENCY,Dalgliesh Ward,HCL NURSING,HNSI0000862,1393.43
Department of Health,Leicestershire Partnership NHS Trust,07/12/21,NURSE - BAND 5 - AGENCY,Dalgliesh Ward,HCL NURSING,HNSI0000862,1687.35
Department of Health,Leicestershire Partnership NHS Trust,07/12/21,NURSE - BAND 2 - AGENCY,H&B Comm Hosp East Ward,HCL NURSING,HNSI0000862,4411.31
Department of Health,Leicestershire Partnership NHS Trust,07/12/21,NURSE - BAND 5 - AGENCY,H&B Comm Hosp East Ward,HCL NURSING,HNSI0000862,4657.32
Department of Health,Leicestershire Partnership NHS Trust,07/12/21,NURSE - BAND 2 - AGENCY,H&B Comm Hosp North Ward,HCL NURSING,HNSI0000862,4369.65
Department of Health,Leicestershire Partnership NHS Trust,07/12/21,NURSE - BAND 5 - AGENCY,H&B Comm Hosp North Ward,HCL NURSING,HNSI0000862,2979.96
Department of Health,Leicestershire Partnership NHS Trust,07/12/21,NURSE - BAND 2 - AGENCY,Lough Swithland Ward,HCL NURSING,HNSI0000862,2379.78
Department of Health,Leicestershire Partnership NHS Trust,07/12/21,NURSE - BAND 5 - AGENCY,Lough Swithland Ward,HCL NURSING,HNSI0000862,3517.15
Department of Health,Leicestershire Partnership NHS Trust,07/12/21,NURSE - BAND 2 - AGENCY,Rutland Ward Nursing,HCL NURSING,HNSI0000862,1047.27
Department of Health,Leicestershire Partnership NHS Trust,07/12/21,NURSE - BAND 5 - AGENCY,Rutland Ward Nursing,HCL NURSING,HNSI0000862,1340.16
Department of Health,Leicestershire Partnership NHS Trust,07/12/21,NURSE - BAND 2 - AGENCY,St Lukes Stroke Ward,HCL NURSING,HNSI0000862,1357.77
Department of Health,Leicestershire Partnership NHS Trust,07/12/21,NURSE - BAND 2 - AGENCY,St Lukes Ward 3,HCL NURSING,HNSI0000862,1993.64
Department of Health,Leicestershire Partnership NHS Trust,07/12/21,NURSE - BAND 5 - AGENCY,St Lukes Ward 3,HCL NURSING,HNSI0000862,2181.50
Department of Health,Leicestershire Partnership NHS Trust,07/12/21,NURSE - BAND 2 - AGENCY,Wakerley Ward,HCL NURSING,HNSI0000862,1718.35
Department of Health,Leicestershire Partnership NHS Trust,07/12/21,NURSE - BAND 5 - AGENCY,Wakerley Ward,HCL NURSING,HNSI0000862,8384.45
Department of Health,Leicestershire Partnership NHS Trust,07/12/21,NURSE - BAND 2 - AGENCY,Beechwood Ward,HCL NURSING,HNSI0000870,3379.30
Department of Health,Leicestershire Partnership NHS Trust,07/12/21,NURSE - BAND 5 - AGENCY,Beechwood Ward,HCL NURSING,HNSI0000870,1763.16
Department of Health,Leicestershire Partnership NHS Trust,07/12/21,NURSE - BAND 5 - AGENCY,City Planned Care - East,HCL NURSING,HNSI0000870,11505.51
Department of Health,Leicestershire Partnership NHS Trust,07/12/21,NURSE - BAND 5 - AGENCY,City Planned Care - West,HCL NURSING,HNSI0000870,12804.80
Department of Health,Leicestershire Partnership NHS Trust,07/12/21,NURSE - BAND 2 - AGENCY,Clarendon Ward,HCL NURSING,HNSI0000870,4769.21
Department of Health,Leicestershire Partnership NHS Trust,07/12/21,NURSE - BAND 5 - AGENCY,Clarendon Ward,HCL NURSING,HNSI0000870,4249.11
Department of Health,Leicestershire Partnership NHS Trust,07/12/21,NURSE - BAND 2 - AGENCY,Coalville Snibston Ward,HCL NURSING,HNSI0000870,3140.42
Department of Health,Leicestershire Partnership NHS Trust,07/12/21,NURSE - BAND 5 - AGENCY,Coalville Snibston Ward,HCL NURSING,HNSI0000870,3012.95
Department of Health,Leicestershire Partnership NHS Trust,07/12/21,NURSE - BAND 2 - AGENCY,Coalville Ward 2,HCL NURSING,HNSI0000870,1124.29
Department of Health,Leicestershire Partnership NHS Trust,07/12/21,NURSE - BAND 5 - AGENCY,Coalville Ward 2,HCL NURSING,HNSI0000870,386.05
Department of Health,Leicestershire Partnership NHS Trust,07/12/21,NURSE - BAND 2 - AGENCY,Dalgliesh Ward,HCL NURSING,HNSI0000870,1028.41
Department of Health,Leicestershire Partnership NHS Trust,07/12/21,NURSE - BAND 5 - AGENCY,Dalgliesh Ward,HCL NURSING,HNSI0000870,2116.40
Department of Health,Leicestershire Partnership NHS Trust,07/12/21,NURSE - BAND 2 - AGENCY,H&B Comm Hosp East Ward,HCL NURSING,HNSI0000870,2047.91
Department of Health,Leicestershire Partnership NHS Trust,07/12/21,NURSE - BAND 5 - AGENCY,H&B Comm Hosp East Ward,HCL NURSING,HNSI0000870,6344.79
Department of Health,Leicestershire Partnership NHS Trust,07/12/21,NURSE - BAND 2 - AGENCY,H&B Comm Hosp North Ward,HCL NURSING,HNSI0000870,5087.42
Department of Health,Leicestershire Partnership NHS Trust,07/12/21,NURSE - BAND 5 - AGENCY,H&B Comm Hosp North Ward,HCL NURSING,HNSI0000870,1800.79
Department of Health,Leicestershire Partnership NHS Trust,07/12/21,NURSE - BAND 2 - AGENCY,Lough Swithland Ward,HCL NURSING,HNSI0000870,2362.36
Department of Health,Leicestershire Partnership NHS Trust,07/12/21,NURSE - BAND 5 - AGENCY,Lough Swithland Ward,HCL NURSING,HNSI0000870,4282.60
Department of Health,Leicestershire Partnership NHS Trust,07/12/21,NURSE - BAND 2 - AGENCY,Rutland Ward Nursing,HCL NURSING,HNSI0000870,1459.40
Department of Health,Leicestershire Partnership NHS Trust,07/12/21,NURSE - BAND 5 - AGENCY,Rutland Ward Nursing,HCL NURSING,HNSI0000870,993.99
Department of Health,Leicestershire Partnership NHS Trust,07/12/21,NURSE - BAND 2 - AGENCY,St Lukes Stroke Ward,HCL NURSING,HNSI0000870,1564.27
Department of Health,Leicestershire Partnership NHS Trust,07/12/21,NURSE - BAND 5 - AGENCY,St Lukes Stroke Ward,HCL NURSING,HNSI0000870,514.85
Department of Health,Leicestershire Partnership NHS Trust,07/12/21,NURSE - BAND 2 - AGENCY,St Lukes Ward 3,HCL NURSING,HNSI0000870,1850.21
Department of Health,Leicestershire Partnership NHS Trust,07/12/21,NURSE - BAND 5 - AGENCY,St Lukes Ward 3,HCL NURSING,HNSI0000870,982.38
Department of Health,Leicestershire Partnership NHS Trust,07/12/21,NURSE - BAND 2 - AGENCY,Wakerley Ward,HCL NURSING,HNSI0000870,379.79
Department of Health,Leicestershire Partnership NHS Trust,07/12/21,NURSE - BAND 5 - AGENCY,Wakerley Ward,HCL NURSING,HNSI0000870,10512.76
Department of Health,Leicestershire Partnership NHS Trust,07/12/21,WIP Project Not in BS - Information Technology,Work in Progress,DELL COMPUTERS,7402763754,39300.00
Department of Health,Leicestershire Partnership NHS Trust,07/12/21,WIP Project Not in BS - Information Technology,Work in Progress,DELL COMPUTERS,7402763945,39300.00
Department of Health,Leicestershire Partnership NHS Trust,07/12/21,WIP Project Not in BS - Information Technology,Work in Progress,DELL COMPUTERS,7402763943,39300.00
Department of Health,Leicestershire Partnership NHS Trust,07/12/21,GP IT Expenditure,Area Team,PHOENIX SOFTWARE LTD,OP/I915886,26085.60
Department of Health,Leicestershire Partnership NHS Trust,08/12/21,WIP Project Not in BS - Buildings excl Dwellings,Work in Progress,TILBURY DOUGLAS CONSTRUCTION LTD,21120051,48213.59
Department of Health,Leicestershire Partnership NHS Trust,08/12/21,WIP Project Not in BS - Buildings excl Dwellings,Work in Progress,TILBURY DOUGLAS CONSTRUCTION LTD,21120056,28158.67
Department of Health,Leicestershire Partnership NHS Trust,08/12/21,WIP Project Not in BS - Buildings excl Dwellings,Work in Progress,TILBURY DOUGLAS CONSTRUCTION LTD,21120055,61608.55
Department of Health,Leicestershire Partnership NHS Trust,08/12/21,WIP Project Not in BS - Buildings excl Dwellings,Work in Progress,TILBURY DOUGLAS CONSTRUCTION LTD,21120057,49534.75
Department of Health,Leicestershire Partnership NHS Trust,09/12/21,Drugs,Adult City Drugs,JANSSEN-CILAG LTD,930715308,17653.80
Department of Health,Leicestershire Partnership NHS Trust,09/12/21,Drugs,Adult County Drugs,JANSSEN-CILAG LTD,930715308,26480.69
Department of Health,Leicestershire Partnership NHS Trust,10/12/21,WIP Project Not in BS - Information Technology,Work in Progress,DELL COMPUTERS,7402768122,39300.00
Department of Health,Leicestershire Partnership NHS Trust,10/12/21,Computer Hardware,HIS,DELL COMPUTERS,7402768121,40500.00
Department of Health,Leicestershire Partnership NHS Trust,10/12/21,WIP Project Not in BS - Information Technology,Work in Progress,DELL COMPUTERS,7402768125,39300.00
Department of Health,Leicestershire Partnership NHS Trust,10/12/21,Maintenance Equipt/Materials,Estates & Facilities Central,TANDRUP UK LTD,SINV1000604,76268.40
Department of Health,Leicestershire Partnership NHS Trust,10/12/21,Payroll Deductions -Home Electronics 62 Nov 21,Balance Sheet Collection,SME HCI LTD,137424,38957.10
Department of Health,Leicestershire Partnership NHS Trust,13/12/21,Crs_NHS_LT1y -Resus Inventory Supplied.,Balance Sheet Collection,SUPPLY CHAIN CO LTD,1122170703,28856.92
Department of Health,Leicestershire Partnership NHS Trust,15/12/21,Healthcare Services / Recharges from Non-NHS Bodies,Medical Trainees,UNIVERSITY OF LEICESTER,2230118536,103882.00
Department of Health,Leicestershire Partnership NHS Trust,15/12/21,Healthcare Services / Recharges from Non-NHS Bodies,Medical Trainees,UNIVERSITY OF LEICESTER,2230119536,120158.00
Department of Health,Leicestershire Partnership NHS Trust,15/12/21,Electricity,"Belvoir Intensive Care Unit (P7, LPT)",UHL NHS TRUST (RWE),L0255826,1651.86
Department of Health,Leicestershire Partnership NHS Trust,15/12/21,Electricity,"Bennion Centre (including Forest Grange Day Unit) (P8, LPT)",UHL NHS TRUST (RWE),L0255826,5815.71
Department of Health,Leicestershire Partnership NHS Trust,15/12/21,Electricity,"Bradgate Unit (including Glenvale day Unit) (P7, LPT)",UHL NHS TRUST (RWE),L0255826,15998.22
Department of Health,Leicestershire Partnership NHS Trust,15/12/21,Contract : Premises Security,Estates & Facilities Central,UHL NHS TRUST (RWE),L0255826,2295.52
Department of Health,Leicestershire Partnership NHS Trust,15/12/21,Electricity,"Herschel Prins (P9, LPT)",UHL NHS TRUST (RWE),L0255826,4206.64
Department of Health,Leicestershire Partnership NHS Trust,15/12/21,Electricity,Modular Training Building,UHL NHS TRUST (RWE),L0255826,783.95
Department of Health,Leicestershire Partnership NHS Trust,15/12/21,Electricity,Pharmacy Portacabin,UHL NHS TRUST (RWE),L0255826,1211.02
Department of Health,Leicestershire Partnership NHS Trust,15/12/21,Services / Recharges from NHS Trusts,UHL Expenditure Contract,UHL NHS TRUST (RWE),L0255826,5552.23
Department of Health,Leicestershire Partnership NHS Trust,15/12/21,UHL Facilities Management SLA,Estates Central Invoices To Recharge,UHL NHS TRUST (RWE),L0255827,940375.84
Department of Health,Leicestershire Partnership NHS Trust,15/12/21,Med Trainees - FY1,Medical Trainees,UHL NHS TRUST (RWE),L0255830,29409.58
Department of Health,Leicestershire Partnership NHS Trust,15/12/21,WIP Project Not in BS - Information Technology,Work in Progress,DELL COMPUTERS,7402769394,39300.00
Department of Health,Leicestershire Partnership NHS Trust,15/12/21,WIP Project Not in BS - Buildings excl Dwellings,Work in Progress,TILBURY DOUGLAS CONSTRUCTION LTD,21120153,120033.13
Department of Health,Leicestershire Partnership NHS Trust,15/12/21,WIP Project Not in BS - Buildings excl Dwellings,Work in Progress,TILBURY DOUGLAS CONSTRUCTION LTD,21120154,36823.20
Department of Health,Leicestershire Partnership NHS Trust,16/12/21,NURSE - BAND 2 - AGENCY,Beechwood Ward,HCL NURSING,HNSI0000876,5622.71
Department of Health,Leicestershire Partnership NHS Trust,16/12/21,NURSE - BAND 5 - AGENCY,Beechwood Ward,HCL NURSING,HNSI0000876,1678.16
Department of Health,Leicestershire Partnership NHS Trust,16/12/21,NURSE - BAND 5 - AGENCY,City Planned Care - East,HCL NURSING,HNSI0000876,10850.74
Department of Health,Leicestershire Partnership NHS Trust,16/12/21,NURSE - BAND 5 - AGENCY,City Planned Care - West,HCL NURSING,HNSI0000876,12106.27
Department of Health,Leicestershire Partnership NHS Trust,16/12/21,NURSE - BAND 2 - AGENCY,Clarendon Ward,HCL NURSING,HNSI0000876,5531.44
Department of Health,Leicestershire Partnership NHS Trust,16/12/21,NURSE - BAND 5 - AGENCY,Clarendon Ward,HCL NURSING,HNSI0000876,4020.59
Department of Health,Leicestershire Partnership NHS Trust,16/12/21,NURSE - BAND 2 - AGENCY,Coalville Snibston Ward,HCL NURSING,HNSI0000876,647.21
Department of Health,Leicestershire Partnership NHS Trust,16/12/21,NURSE - BAND 5 - AGENCY,Coalville Snibston Ward,HCL NURSING,HNSI0000876,4319.19
Department of Health,Leicestershire Partnership NHS Trust,16/12/21,NURSE - BAND 5 - AGENCY,Coalville Ward 2,HCL NURSING,HNSI0000876,2108.38
Department of Health,Leicestershire Partnership NHS Trust,16/12/21,NURSE - BAND 5 - AGENCY,Dalgliesh Ward,HCL NURSING,HNSI0000876,1507.09
Department of Health,Leicestershire Partnership NHS Trust,16/12/21,NURSE - BAND 2 - AGENCY,H&B Comm Hosp East Ward,HCL NURSING,HNSI0000876,5062.96
Department of Health,Leicestershire Partnership NHS Trust,16/12/21,NURSE - BAND 5 - AGENCY,H&B Comm Hosp East Ward,HCL NURSING,HNSI0000876,8563.95
Department of Health,Leicestershire Partnership NHS Trust,16/12/21,NURSE - BAND 2 - AGENCY,H&B Comm Hosp North Ward,HCL NURSING,HNSI0000876,5762.54
Department of Health,Leicestershire Partnership NHS Trust,16/12/21,NURSE - BAND 5 - AGENCY,H&B Comm Hosp North Ward,HCL NURSING,HNSI0000876,4777.67
Department of Health,Leicestershire Partnership NHS Trust,16/12/21,NURSE - BAND 2 - AGENCY,Lough Swithland Ward,HCL NURSING,HNSI0000876,1332.31
Department of Health,Leicestershire Partnership NHS Trust,16/12/21,NURSE - BAND 5 - AGENCY,Lough Swithland Ward,HCL NURSING,HNSI0000876,1108.01
Department of Health,Leicestershire Partnership NHS Trust,16/12/21,NURSE - BAND 2 - AGENCY,Rutland Ward Nursing,HCL NURSING,HNSI0000876,1568.61
Department of Health,Leicestershire Partnership NHS Trust,16/12/21,NURSE - BAND 5 - AGENCY,Rutland Ward Nursing,HCL NURSING,HNSI0000876,467.53
Department of Health,Leicestershire Partnership NHS Trust,16/12/21,NURSE - BAND 2 - AGENCY,St Lukes Stroke Ward,HCL NURSING,HNSI0000876,696.01
Department of Health,Leicestershire Partnership NHS Trust,16/12/21,NURSE - BAND 5 - AGENCY,St Lukes Stroke Ward,HCL NURSING,HNSI0000876,329.84
Department of Health,Leicestershire Partnership NHS Trust,16/12/21,NURSE - BAND 2 - AGENCY,St Lukes Ward 3,HCL NURSING,HNSI0000876,1137.71
Department of Health,Leicestershire Partnership NHS Trust,16/12/21,NURSE - BAND 5 - AGENCY,St Lukes Ward 3,HCL NURSING,HNSI0000876,1615.36
Department of Health,Leicestershire Partnership NHS Trust,16/12/21,NURSE - BAND 2 - AGENCY,Wakerley Ward,HCL NURSING,HNSI0000876,3220.04
Department of Health,Leicestershire Partnership NHS Trust,16/12/21,NURSE - BAND 5 - AGENCY,Wakerley Ward,HCL NURSING,HNSI0000876,8148.85
Department of Health,Leicestershire Partnership NHS Trust,16/12/21,Gas,"Beaumont Leys Health Centre (P94, LPT)",TOTAL GAS & POWER LTD,254594994/21,561.54
Department of Health,Leicestershire Partnership NHS Trust,16/12/21,Gas,"Bradgate Unit (including Glenvale day Unit) (P7, LPT)",TOTAL GAS & POWER LTD,254594994/21,19210.76
Department of Health,Leicestershire Partnership NHS Trust,16/12/21,Gas,Bridge Park Plaza - First Floor (LPT),TOTAL GAS & POWER LTD,254594994/21,1050.19
Department of Health,Leicestershire Partnership NHS Trust,16/12/21,Gas,"Bridge Park Road - Units 2 and 3 (P148, LPT)",TOTAL GAS & POWER LTD,254594994/21,357.05
Department of Health,Leicestershire Partnership NHS Trust,16/12/21,Gas,"Coalville Community Hospital (P138, LPT)",TOTAL GAS & POWER LTD,254594994/21,6539.60
Department of Health,Leicestershire Partnership NHS Trust,16/12/21,Gas,"Coalville Health Centre (P121, LPT)",TOTAL GAS & POWER LTD,254594994/21,540.60
Department of Health,Leicestershire Partnership NHS Trust,16/12/21,Gas,"Evington Centre (P6, LPT)",TOTAL GAS & POWER LTD,254594994/21,1084.99
Department of Health,Leicestershire Partnership NHS Trust,16/12/21,Gas,"Farm Lodge (P34, LPT)",TOTAL GAS & POWER LTD,254594994/21,183.24
Department of Health,Leicestershire Partnership NHS Trust,16/12/21,Gas,"Feilding Palmer Hospital (Lutterworth) (P131, LPT)",TOTAL GAS & POWER LTD,254594994/21,1322.03
Department of Health,Leicestershire Partnership NHS Trust,16/12/21,Gas,"Frith Cottages 3 & 4 (P36, LPT)",TOTAL GAS & POWER LTD,254594994/21,185.48
Department of Health,Leicestershire Partnership NHS Trust,16/12/21,Gas,HIS,TOTAL GAS & POWER LTD,254594994/21,218.50
Department of Health,Leicestershire Partnership NHS Trust,16/12/21,Gas,"Hawthorne Centre - Coalville (P14, LPT)",TOTAL GAS & POWER LTD,254594994/21,388.55
Department of Health,Leicestershire Partnership NHS Trust,16/12/21,Gas,"Hinckley and Bosworth Community Hospital (Sunnyside) (P133, LPT)",TOTAL GAS & POWER LTD,254594994/21,4788.68
Department of Health,Leicestershire Partnership NHS Trust,16/12/21,Gas,"Hynca Lodge (P33, LPT)",TOTAL GAS & POWER LTD,254594994/21,365.28
Department of Health,Leicestershire Partnership NHS Trust,16/12/21,Gas,"LGH - Gwendolen House (P4, LPT)",TOTAL GAS & POWER LTD,254594994/21,1588.03
Department of Health,Leicestershire Partnership NHS Trust,16/12/21,Gas,"Loughborough Hospital (P136, LPT)",TOTAL GAS & POWER LTD,254594994/21,12955.75
Department of Health,Leicestershire Partnership NHS Trust,16/12/21,Gas,Mawson House (LPT),TOTAL GAS & POWER LTD,254594994/21,551.99
Department of Health,Leicestershire Partnership NHS Trust,16/12/21,Gas,"Mett Centre (P49, LPT)",TOTAL GAS & POWER LTD,254594994/21,268.21
Department of Health,Leicestershire Partnership NHS Trust,16/12/21,Gas,"Narborough Health Centre (P117, LPT)",TOTAL GAS & POWER LTD,254594994/21,440.09
Department of Health,Leicestershire Partnership NHS Trust,16/12/21,Gas,"Neville Centre - LGH (was DSC) (P147, LPT)",TOTAL GAS & POWER LTD,254594994/21,734.56
Department of Health,Leicestershire Partnership NHS Trust,16/12/21,Gas,"OSL House (P54, LPT)",TOTAL GAS & POWER LTD,254594994/21,617.86
Department of Health,Leicestershire Partnership NHS Trust,16/12/21,Gas,"Orchard Resource Centre (P15, LPT)",TOTAL GAS & POWER LTD,254594994/21,567.91
Department of Health,Leicestershire Partnership NHS Trust,16/12/21,Gas,"Rutland Memorial Hospital (P134, LPT)",TOTAL GAS & POWER LTD,254594994/21,1891.69
Department of Health,Leicestershire Partnership NHS Trust,16/12/21,Gas,"Shepshed Health Centre (P123, LPT)",TOTAL GAS & POWER LTD,254594994/21,518.03
Department of Health,Leicestershire Partnership NHS Trust,16/12/21,Gas,"Springfield Road Health Centre (P92, LPT)",TOTAL GAS & POWER LTD,254594994/21,555.96
Department of Health,Leicestershire Partnership NHS Trust,16/12/21,Gas,"Stewart House (P61, LPT)",TOTAL GAS & POWER LTD,254594994/21,2322.68
Department of Health,Leicestershire Partnership NHS Trust,16/12/21,Gas,"The Agnes Unit (AKA Assessment and Treatment Centre) (P85, LPT)",TOTAL GAS & POWER LTD,254594994/21,2842.37
Department of Health,Leicestershire Partnership NHS Trust,16/12/21,Gas,The Beacon,TOTAL GAS & POWER LTD,254594994/21,1411.20
Department of Health,Leicestershire Partnership NHS Trust,16/12/21,Gas,"The Cedars (P19, LPT)",TOTAL GAS & POWER LTD,254594994/21,1058.84
Department of Health,Leicestershire Partnership NHS Trust,16/12/21,Gas,"The Grange 1 (P4, LPT)",TOTAL GAS & POWER LTD,254594994/21,253.57
Department of Health,Leicestershire Partnership NHS Trust,16/12/21,Gas,"The Grange 2 (P41, LPT)",TOTAL GAS & POWER LTD,254594994/21,195.32
Department of Health,Leicestershire Partnership NHS Trust,16/12/21,Gas,"The Willows - Cordelia Close (P22, LPT)",TOTAL GAS & POWER LTD,254594994/21,2538.11
Department of Health,Leicestershire Partnership NHS Trust,16/12/21,Gas,"Valentine Centre (P3, LPT)",TOTAL GAS & POWER LTD,254594994/21,1584.32
Department of Health,Leicestershire Partnership NHS Trust,16/12/21,Gas,"Westcotes Group -Westcotes House (P78, LPT)",TOTAL GAS & POWER LTD,254594994/21,1000.71
Department of Health,Leicestershire Partnership NHS Trust,16/12/21,Gas,"Winstanley Drive Health Centre (P8, LPT)",TOTAL GAS & POWER LTD,254594994/21,451.75
Department of Health,Leicestershire Partnership NHS Trust,17/12/21,HR / Payroll Services,HR Employment Services,LINCOLNSHIRE PART NHSFT(RP7),L0000020,29360.83
Department of Health,Leicestershire Partnership NHS Trust,17/12/21,Occupational Health,HR Operations,UHL NHS TRUST (RWE),L0255935,35290.00
Department of Health,Leicestershire Partnership NHS Trust,17/12/21,CONSULTANT,Covid Vaccination Workforce Bureau,NHS WEST LEICS CCG (04V),7018301642,27354.30
Department of Health,Leicestershire Partnership NHS Trust,20/12/21,PropCo Estates Management,Charnwood Mill (PROPCO),NHS PROPERTY SERVICES LTD,00000001/H501919,38020.45
Department of Health,Leicestershire Partnership NHS Trust,20/12/21,PropCo Estates Management,Melton Mowbray Hospital (previously St. Mary's) (PROPCO),NHS PROPERTY SERVICES LTD,00000001/H501918,26620.78
Department of Health,Leicestershire Partnership NHS Trust,20/12/21,Services / Recharges from NHS Trusts,Inter Unit I & E Distribution,UHL NHS TRUST (RWE),L0255974,60000.04
Department of Health,Leicestershire Partnership NHS Trust,20/12/21,Crs_NHS_LT1y -Resus Inventory Supplied.,Balance Sheet Collection,SUPPLY CHAIN CO LTD,1122173297,42052.17
Department of Health,Leicestershire Partnership NHS Trust,20/12/21,Nurse - Band 6 -Agency,AMH - Central Access Point,HCL NURSING,HNSI0000880,2725.44
Department of Health,Leicestershire Partnership NHS Trust,20/12/21,Nurse - Band 6 -Agency,Adult City East CMHT - Merlyn Vaz,HCL NURSING,HNSI0000880,1109.03
Department of Health,Leicestershire Partnership NHS Trust,20/12/21,Nurse - Band 6 -Agency,Adult County Charnwood CMHT - Loughborough Base,HCL NURSING,HNSI0000880,2584.71
Department of Health,Leicestershire Partnership NHS Trust,20/12/21,Nurse - Band 6 -Agency,Adult County West Leicestershire CMHT,HCL NURSING,HNSI0000880,1069.97
Department of Health,Leicestershire Partnership NHS Trust,20/12/21,NURSE - BAND 2 - AGENCY,Agnes Unit Management,HCL NURSING,HNSI0000880,23643.23
Department of Health,Leicestershire Partnership NHS Trust,20/12/21,NURSE - BAND 5 - AGENCY,Agnes Unit Management,HCL NURSING,HNSI0000880,22920.95
Department of Health,Leicestershire Partnership NHS Trust,20/12/21,NURSE - BAND 2 - AGENCY,Ashby Ward (Bradgate Unit),HCL NURSING,HNSI0000880,1201.59
Department of Health,Leicestershire Partnership NHS Trust,20/12/21,NURSE - BAND 5 - AGENCY,Ashby Ward (Bradgate Unit),HCL NURSING,HNSI0000880,6388.09
Department of Health,Leicestershire Partnership NHS Trust,20/12/21,NURSE - BAND 2 - AGENCY,Aston Ward (Bradgate Unit),HCL NURSING,HNSI0000880,4449.55
Department of Health,Leicestershire Partnership NHS Trust,20/12/21,NURSE - BAND 5 - AGENCY,Aston Ward (Bradgate Unit),HCL NURSING,HNSI0000880,10032.46
Department of Health,Leicestershire Partnership NHS Trust,20/12/21,NURSE - BAND 2 - AGENCY,Beaumont Ward - Bradgate Unit,HCL NURSING,HNSI0000880,2290.47
Department of Health,Leicestershire Partnership NHS Trust,20/12/21,NURSE - BAND 5 - AGENCY,Beaumont Ward - Bradgate Unit,HCL NURSING,HNSI0000880,2755.90
Department of Health,Leicestershire Partnership NHS Trust,20/12/21,NURSE - BAND 2 - AGENCY,Belvoir Psychiatric Intensive Care Unit,HCL NURSING,HNSI0000880,6976.60
Department of Health,Leicestershire Partnership NHS Trust,20/12/21,NURSE - BAND 5 - AGENCY,Belvoir Psychiatric Intensive Care Unit,HCL NURSING,HNSI0000880,3537.51
Department of Health,Leicestershire Partnership NHS Trust,20/12/21,NURSE - BAND 2 - AGENCY,Cedar (Willows),HCL NURSING,HNSI0000880,538.97
Department of Health,Leicestershire Partnership NHS Trust,20/12/21,Nurse - Band 6 -Agency,City West CMHT MHSOP,HCL NURSING,HNSI0000880,1046.25
Department of Health,Leicestershire Partnership NHS Trust,20/12/21,NURSE - BAND 2 - AGENCY,Coleman Ward,HCL NURSING,HNSI0000880,1011.34
Department of Health,Leicestershire Partnership NHS Trust,20/12/21,NURSE - BAND 5 - AGENCY,Coleman Ward,HCL NURSING,HNSI0000880,6663.93
Department of Health,Leicestershire Partnership NHS Trust,20/12/21,NURSE - BAND 5 - AGENCY,Crisis Resolution,HCL NURSING,HNSI0000880,418.00
Department of Health,Leicestershire Partnership NHS Trust,20/12/21,Nurse - Band 6 -Agency,Crisis Resolution,HCL NURSING,HNSI0000880,2068.82
Department of Health,Leicestershire Partnership NHS Trust,20/12/21,NURSE - BAND 2 - AGENCY,Griffin Ward (HPC),HCL NURSING,HNSI0000880,3914.72
Department of Health,Leicestershire Partnership NHS Trust,20/12/21,NURSE - BAND 5 - AGENCY,Griffin Ward (HPC),HCL NURSING,HNSI0000880,4425.40
Department of Health,Leicestershire Partnership NHS Trust,20/12/21,NURSE - BAND 2 - AGENCY,Heather Ward,HCL NURSING,HNSI0000880,2218.97
Department of Health,Leicestershire Partnership NHS Trust,20/12/21,NURSE - BAND 5 - AGENCY,Heather Ward,HCL NURSING,HNSI0000880,3637.34
Department of Health,Leicestershire Partnership NHS Trust,20/12/21,NURSE - BAND 2 - AGENCY,Kirby Ward,HCL NURSING,HNSI0000880,1169.19
Department of Health,Leicestershire Partnership NHS Trust,20/12/21,NURSE - BAND 5 - AGENCY,Kirby Ward,HCL NURSING,HNSI0000880,2790.95
Department of Health,Leicestershire Partnership NHS Trust,20/12/21,NURSE - BAND 2 - AGENCY,Maple Ward,HCL NURSING,HNSI0000880,493.07
Department of Health,Leicestershire Partnership NHS Trust,20/12/21,Nurse - Band 6 -Agency,Mental Health Liaison Team,HCL NURSING,HNSI0000880,1773.46
Department of Health,Leicestershire Partnership NHS Trust,20/12/21,NURSE - BAND 2 - AGENCY,Mill Lodge,HCL NURSING,HNSI0000880,7034.33
Department of Health,Leicestershire Partnership NHS Trust,20/12/21,NURSE - BAND 5 - AGENCY,Mill Lodge,HCL NURSING,HNSI0000880,4134.80
Department of Health,Leicestershire Partnership NHS Trust,20/12/21,NURSE - BAND 2 - AGENCY,Outreach,HCL NURSING,HNSI0000880,212.30
Department of Health,Leicestershire Partnership NHS Trust,20/12/21,NURSE - BAND 2 - AGENCY,Phoenix Ward (HPC),HCL NURSING,HNSI0000880,4355.29
Department of Health,Leicestershire Partnership NHS Trust,20/12/21,NURSE - BAND 5 - AGENCY,Phoenix Ward (HPC),HCL NURSING,HNSI0000880,1593.05
Department of Health,Leicestershire Partnership NHS Trust,20/12/21,NURSE - BAND 2 - AGENCY,Place Of Safety Assessment Unit,HCL NURSING,HNSI0000880,223.59
Department of Health,Leicestershire Partnership NHS Trust,20/12/21,NURSE - BAND 5 - AGENCY,Place Of Safety Assessment Unit,HCL NURSING,HNSI0000880,1968.20
Department of Health,Leicestershire Partnership NHS Trust,20/12/21,NURSE - BAND 2 - AGENCY,Stewart House,HCL NURSING,HNSI0000880,327.80
Department of Health,Leicestershire Partnership NHS Trust,20/12/21,NURSE - BAND 5 - AGENCY,Stewart House,HCL NURSING,HNSI0000880,295.50
Department of Health,Leicestershire Partnership NHS Trust,20/12/21,NURSE - BAND 2 - AGENCY,Thornton Ward - Bradgate Unit,HCL NURSING,HNSI0000880,788.25
Department of Health,Leicestershire Partnership NHS Trust,20/12/21,NURSE - BAND 2 - AGENCY,Watermead Ward (Bradgate Unit),HCL NURSING,HNSI0000880,1530.79
Department of Health,Leicestershire Partnership NHS Trust,20/12/21,NURSE - BAND 5 - AGENCY,Watermead Ward (Bradgate Unit),HCL NURSING,HNSI0000880,4287.15
Department of Health,Leicestershire Partnership NHS Trust,20/12/21,NURSE - BAND 2 - AGENCY,Welford Ward,HCL NURSING,HNSI0000880,328.34
Department of Health,Leicestershire Partnership NHS Trust,20/12/21,NURSE - BAND 5 - AGENCY,Welford Ward,HCL NURSING,HNSI0000880,1971.30
Department of Health,Leicestershire Partnership NHS Trust,20/12/21,Nurse - Band 6 -Agency,AMH - Central Access Point,HCL NURSING,HNSI0000875,3894.76
Department of Health,Leicestershire Partnership NHS Trust,20/12/21,Nurse - Band 6 -Agency,Adult City East CMHT - Merlyn Vaz,HCL NURSING,HNSI0000875,1109.03
Department of Health,Leicestershire Partnership NHS Trust,20/12/21,Nurse - Band 6 -Agency,Adult County West Leicestershire CMHT,HCL NURSING,HNSI0000875,1069.97
Department of Health,Leicestershire Partnership NHS Trust,20/12/21,NURSE - BAND 2 - AGENCY,Agnes Unit Management,HCL NURSING,HNSI0000875,22006.18
Department of Health,Leicestershire Partnership NHS Trust,20/12/21,NURSE - BAND 5 - AGENCY,Agnes Unit Management,HCL NURSING,HNSI0000875,19163.68
Department of Health,Leicestershire Partnership NHS Trust,20/12/21,NURSE - BAND 2 - AGENCY,Ashby Ward (Bradgate Unit),HCL NURSING,HNSI0000875,808.23
Department of Health,Leicestershire Partnership NHS Trust,20/12/21,NURSE - BAND 5 - AGENCY,Ashby Ward (Bradgate Unit),HCL NURSING,HNSI0000875,4496.04
Department of Health,Leicestershire Partnership NHS Trust,20/12/21,NURSE - BAND 2 - AGENCY,Aston Ward (Bradgate Unit),HCL NURSING,HNSI0000875,2071.60
Department of Health,Leicestershire Partnership NHS Trust,20/12/21,NURSE - BAND 5 - AGENCY,Aston Ward (Bradgate Unit),HCL NURSING,HNSI0000875,6721.98
Department of Health,Leicestershire Partnership NHS Trust,20/12/21,NURSE - BAND 2 - AGENCY,Beaumont Ward - Bradgate Unit,HCL NURSING,HNSI0000875,3151.21
Department of Health,Leicestershire Partnership NHS Trust,20/12/21,NURSE - BAND 5 - AGENCY,Beaumont Ward - Bradgate Unit,HCL NURSING,HNSI0000875,3253.36
Department of Health,Leicestershire Partnership NHS Trust,20/12/21,NURSE - BAND 2 - AGENCY,Belvoir Psychiatric Intensive Care Unit,HCL NURSING,HNSI0000875,4810.51
Department of Health,Leicestershire Partnership NHS Trust,20/12/21,NURSE - BAND 5 - AGENCY,Belvoir Psychiatric Intensive Care Unit,HCL NURSING,HNSI0000875,3452.89
Department of Health,Leicestershire Partnership NHS Trust,20/12/21,Nurse - Band 6 -Agency,Belvoir Psychiatric Intensive Care Unit,HCL NURSING,HNSI0000875,458.37
Department of Health,Leicestershire Partnership NHS Trust,20/12/21,NURSE - BAND 2 - AGENCY,Cedar (Willows),HCL NURSING,HNSI0000875,2078.75
Department of Health,Leicestershire Partnership NHS Trust,20/12/21,Nurse - Band 6 -Agency,City West CMHT MHSOP,HCL NURSING,HNSI0000875,1069.97
Department of Health,Leicestershire Partnership NHS Trust,20/12/21,NURSE - BAND 2 - AGENCY,Coleman Ward,HCL NURSING,HNSI0000875,1992.51
Department of Health,Leicestershire Partnership NHS Trust,20/12/21,NURSE - BAND 5 - AGENCY,Coleman Ward,HCL NURSING,HNSI0000875,6805.65
Department of Health,Leicestershire Partnership NHS Trust,20/12/21,Nurse - Band 6 -Agency,Crisis Resolution,HCL NURSING,HNSI0000875,1734.21
Department of Health,Leicestershire Partnership NHS Trust,20/12/21,NURSE - BAND 2 - AGENCY,Griffin Ward (HPC),HCL NURSING,HNSI0000875,4542.57
Department of Health,Leicestershire Partnership NHS Trust,20/12/21,NURSE - BAND 5 - AGENCY,Griffin Ward (HPC),HCL NURSING,HNSI0000875,6970.84
Department of Health,Leicestershire Partnership NHS Trust,20/12/21,NURSE - BAND 2 - AGENCY,Heather Ward,HCL NURSING,HNSI0000875,4388.41
Department of Health,Leicestershire Partnership NHS Trust,20/12/21,NURSE - BAND 5 - AGENCY,Heather Ward,HCL NURSING,HNSI0000875,5499.15
Department of Health,Leicestershire Partnership NHS Trust,20/12/21,NURSE - BAND 2 - AGENCY,Kirby Ward,HCL NURSING,HNSI0000875,1190.80
Department of Health,Leicestershire Partnership NHS Trust,20/12/21,NURSE - BAND 2 - AGENCY,Maple Ward,HCL NURSING,HNSI0000875,1699.87
Department of Health,Leicestershire Partnership NHS Trust,20/12/21,Nurse - Band 6 -Agency,Mental Health Liaison Team,HCL NURSING,HNSI0000875,1773.46
Department of Health,Leicestershire Partnership NHS Trust,20/12/21,NURSE - BAND 2 - AGENCY,Mill Lodge,HCL NURSING,HNSI0000875,10103.63
Department of Health,Leicestershire Partnership NHS Trust,20/12/21,NURSE - BAND 5 - AGENCY,Mill Lodge,HCL NURSING,HNSI0000875,4749.11
Department of Health,Leicestershire Partnership NHS Trust,20/12/21,NURSE - BAND 2 - AGENCY,Outreach,HCL NURSING,HNSI0000875,921.23
Department of Health,Leicestershire Partnership NHS Trust,20/12/21,NURSE - BAND 2 - AGENCY,Phoenix Ward (HPC),HCL NURSING,HNSI0000875,1865.79
Department of Health,Leicestershire Partnership NHS Trust,20/12/21,NURSE - BAND 5 - AGENCY,Phoenix Ward (HPC),HCL NURSING,HNSI0000875,4644.52
Department of Health,Leicestershire Partnership NHS Trust,20/12/21,NURSE - BAND 2 - AGENCY,Place Of Safety Assessment Unit,HCL NURSING,HNSI0000875,1085.06
Department of Health,Leicestershire Partnership NHS Trust,20/12/21,NURSE - BAND 5 - AGENCY,Place Of Safety Assessment Unit,HCL NURSING,HNSI0000875,1156.65
Department of Health,Leicestershire Partnership NHS Trust,20/12/21,NURSE - BAND 2 - AGENCY,Stewart House,HCL NURSING,HNSI0000875,406.86
Department of Health,Leicestershire Partnership NHS Trust,20/12/21,NURSE - BAND 5 - AGENCY,Stewart House,HCL NURSING,HNSI0000875,1055.96
Department of Health,Leicestershire Partnership NHS Trust,20/12/21,NURSE - BAND 2 - AGENCY,Urgent Care Hub,HCL NURSING,HNSI0000875,223.59
Department of Health,Leicestershire Partnership NHS Trust,20/12/21,NURSE - BAND 2 - AGENCY,Watermead Ward (Bradgate Unit),HCL NURSING,HNSI0000875,1232.47
Department of Health,Leicestershire Partnership NHS Trust,20/12/21,NURSE - BAND 5 - AGENCY,Watermead Ward (Bradgate Unit),HCL NURSING,HNSI0000875,3506.57
Department of Health,Leicestershire Partnership NHS Trust,20/12/21,NURSE - BAND 2 - AGENCY,Welford Ward,HCL NURSING,HNSI0000875,316.31
Department of Health,Leicestershire Partnership NHS Trust,20/12/21,NURSE - BAND 5 - AGENCY,Welford Ward,HCL NURSING,HNSI0000875,939.30
Department of Health,Leicestershire Partnership NHS Trust,20/12/21,GP IT Expenditure,Area Team,CODEGATE LTD,241344,44232.00
Department of Health,Leicestershire Partnership NHS Trust,20/12/21,Nurse - Band 6 -Agency,CAMHS HUB / CAP,HCL SOCIAL CARE,HWSI0000956,8294.11
Department of Health,Leicestershire Partnership NHS Trust,20/12/21,Nurse - Band 6 -Agency,CAMHS Waiting List Monies,HCL SOCIAL CARE,HWSI0000956,19391.87
Department of Health,Leicestershire Partnership NHS Trust,20/12/21,Nurse - Band 6 -Agency,Crisis Response and Home Treatment,HCL SOCIAL CARE,HWSI0000956,1537.83
Department of Health,Leicestershire Partnership NHS Trust,20/12/21,NURSE - BAND 2 - AGENCY,CAMHS ED Team,HCL NURSING,HNSI0000882,344.03
Department of Health,Leicestershire Partnership NHS Trust,20/12/21,NURSE - BAND 2 - AGENCY,CAMHS Inpatient Service,HCL NURSING,HNSI0000882,18277.11
Department of Health,Leicestershire Partnership NHS Trust,20/12/21,NURSE - BAND 5 - AGENCY,CAMHS Inpatient Service,HCL NURSING,HNSI0000882,2465.45
Department of Health,Leicestershire Partnership NHS Trust,20/12/21,NURSE - BAND 2 - AGENCY,CAMHS Outpatients,HCL NURSING,HNSI0000882,2090.49
Department of Health,Leicestershire Partnership NHS Trust,20/12/21,Nurse - Band 6 -Agency,CAMHS Waiting List Monies,HCL NURSING,HNSI0000882,8572.74
Department of Health,Leicestershire Partnership NHS Trust,20/12/21,NURSE - BAND 2 - AGENCY,Crisis Response and Home Treatment,HCL NURSING,HNSI0000882,343.11
Department of Health,Leicestershire Partnership NHS Trust,20/12/21,NURSE - BAND 2 - AGENCY,Langley Ward ED Inpatient Service,HCL NURSING,HNSI0000882,1648.38
Department of Health,Leicestershire Partnership NHS Trust,20/12/21,NURSE - BAND 5 - AGENCY,Langley Ward ED Inpatient Service,HCL NURSING,HNSI0000882,1123.92
Department of Health,Leicestershire Partnership NHS Trust,20/12/21,GP IT Expenditure,Area Team,CODEGATE LTD,241345,54528.00
Department of Health,Leicestershire Partnership NHS Trust,20/12/21,Nurse - Band 6 -Agency,CAMHS HUB / CAP,HCL SOCIAL CARE,HWSI0000945,8812.21
Department of Health,Leicestershire Partnership NHS Trust,20/12/21,Nurse - Band 6 -Agency,CAMHS Outpatients,HCL SOCIAL CARE,HWSI0000945,1235.91
Department of Health,Leicestershire Partnership NHS Trust,20/12/21,Nurse - Band 6 -Agency,CAMHS Waiting List Monies,HCL SOCIAL CARE,HWSI0000945,18795.48
Department of Health,Leicestershire Partnership NHS Trust,20/12/21,Nurse - Band 6 -Agency,Crisis Response and Home Treatment,HCL SOCIAL CARE,HWSI0000945,2047.28
Department of Health,Leicestershire Partnership NHS Trust,20/12/21,GP IT Expenditure,Area Team,CODEGATE LTD,241346,26100.00
Department of Health,Leicestershire Partnership NHS Trust,20/12/21,NURSE - BAND 2 - AGENCY,CAMHS Inpatient Service,HCL NURSING,HNSI0000877,13510.68
Department of Health,Leicestershire Partnership NHS Trust,20/12/21,NURSE - BAND 5 - AGENCY,CAMHS Inpatient Service,HCL NURSING,HNSI0000877,1250.19
Department of Health,Leicestershire Partnership NHS Trust,20/12/21,NURSE - BAND 2 - AGENCY,CAMHS Outpatients,HCL NURSING,HNSI0000877,3035.63
Department of Health,Leicestershire Partnership NHS Trust,20/12/21,Nurse - Band 6 -Agency,CAMHS Waiting List Monies,HCL NURSING,HNSI0000877,4391.77
Department of Health,Leicestershire Partnership NHS Trust,20/12/21,NURSE - BAND 5 - AGENCY,Langley Ward ED Inpatient Service,HCL NURSING,HNSI0000877,1610.14
Department of Health,Leicestershire Partnership NHS Trust,20/12/21,Insurance Costs,Chief Executives Office,NHS LITIGATION AUTHORITY,SICX407514,165217.80
Department of Health,Leicestershire Partnership NHS Trust,20/12/21,Computer Hardware,HIS External Recharge,DELL COMPUTERS,7402771015,39000.00
Department of Health,Leicestershire Partnership NHS Trust,20/12/21,PropCo Estates Management,Melton Mowbray Hospital (previously St. Mary's) (PROPCO),NHS PROPERTY SERVICES LTD,00000001/H501921,48626.05
Department of Health,Leicestershire Partnership NHS Trust,20/12/21,PropCo Estates Management,St. Luke's Hospital (PROPCO),NHS PROPERTY SERVICES LTD,00000001/H501922,43054.90
Department of Health,Leicestershire Partnership NHS Trust,20/12/21,PropCo Estates Management,Charnwood Mill (PROPCO),NHS PROPERTY SERVICES LTD,00000001/H504072,41577.16
Department of Health,Leicestershire Partnership NHS Trust,20/12/21,PropCo Estates Management,St. Luke's Hospital (PROPCO),NHS PROPERTY SERVICES LTD,00000001/H504073,36269.23
Department of Health,Leicestershire Partnership NHS Trust,20/12/21,PropCo Estates Management,New Parks Health Centre (PROPCO),NHS PROPERTY SERVICES LTD,00000001/H504080,40125.10
Department of Health,Leicestershire Partnership NHS Trust,20/12/21,PropCo Estates Management,"Braunstone Health and Social Care Centre (part) (P16, LPT)",NHS PROPERTY SERVICES LTD,00000001/H501909,71946.24
Department of Health,Leicestershire Partnership NHS Trust,20/12/21,PropCo Estates Management,St. Luke's Hospital (PROPCO),NHS PROPERTY SERVICES LTD,00000001/H501910,54482.34
Department of Health,Leicestershire Partnership NHS Trust,20/12/21,PropCo Estates Management,St. Luke's Hospital (PROPCO),NHS PROPERTY SERVICES LTD,00000001/H504091,111221.42
Department of Health,Leicestershire Partnership NHS Trust,20/12/21,PropCo Estates Management,Melton Mowbray Hospital (previously St. Mary's) (PROPCO),NHS PROPERTY SERVICES LTD,00000001/H504090,101018.55
Department of Health,Leicestershire Partnership NHS Trust,20/12/21,PropCo Estates Management,St. Luke's Hospital (PROPCO),NHS PROPERTY SERVICES LTD,00000001/H504081,50478.13
Department of Health,Leicestershire Partnership NHS Trust,21/12/21,Photocopying,Estates & Facilities Central,LEXMARK INTERNATIONAL LTD,900650302232,34216.66
Department of Health,Leicestershire Partnership NHS Trust,21/12/21,PropCo Estates Management,"Braunstone Health and Social Care Centre (part) (P16, LPT)",NHS PROPERTY SERVICES LTD,00000001/H504089,58641.04
Department of Health,Leicestershire Partnership NHS Trust,21/12/21,NURSE - BAND 2 - AGENCY,Beechwood Ward,HCL NURSING,HNSI0000881,9740.09
Department of Health,Leicestershire Partnership NHS Trust,21/12/21,NURSE - BAND 5 - AGENCY,Beechwood Ward,HCL NURSING,HNSI0000881,2661.93
Department of Health,Leicestershire Partnership NHS Trust,21/12/21,NURSE - BAND 5 - AGENCY,City Planned Care - East,HCL NURSING,HNSI0000881,11706.08
Department of Health,Leicestershire Partnership NHS Trust,21/12/21,NURSE - BAND 5 - AGENCY,City Planned Care - West,HCL NURSING,HNSI0000881,11480.15
Department of Health,Leicestershire Partnership NHS Trust,21/12/21,NURSE - BAND 2 - AGENCY,Clarendon Ward,HCL NURSING,HNSI0000881,5987.26
Department of Health,Leicestershire Partnership NHS Trust,21/12/21,NURSE - BAND 5 - AGENCY,Clarendon Ward,HCL NURSING,HNSI0000881,3181.44
Department of Health,Leicestershire Partnership NHS Trust,21/12/21,NURSE - BAND 2 - AGENCY,Coalville Snibston Ward,HCL NURSING,HNSI0000881,1344.09
Department of Health,Leicestershire Partnership NHS Trust,21/12/21,NURSE - BAND 5 - AGENCY,Coalville Snibston Ward,HCL NURSING,HNSI0000881,4600.35
Department of Health,Leicestershire Partnership NHS Trust,21/12/21,NURSE - BAND 5 - AGENCY,Coalville Ward 2,HCL NURSING,HNSI0000881,908.19
Department of Health,Leicestershire Partnership NHS Trust,21/12/21,NURSE - BAND 2 - AGENCY,Dalgliesh Ward,HCL NURSING,HNSI0000881,1573.02
Department of Health,Leicestershire Partnership NHS Trust,21/12/21,NURSE - BAND 5 - AGENCY,Dalgliesh Ward,HCL NURSING,HNSI0000881,1172.50
Department of Health,Leicestershire Partnership NHS Trust,21/12/21,NURSE - BAND 2 - AGENCY,H&B Comm Hosp East Ward,HCL NURSING,HNSI0000881,4735.72
Department of Health,Leicestershire Partnership NHS Trust,21/12/21,NURSE - BAND 5 - AGENCY,H&B Comm Hosp East Ward,HCL NURSING,HNSI0000881,9160.64
Department of Health,Leicestershire Partnership NHS Trust,21/12/21,NURSE - BAND 2 - AGENCY,H&B Comm Hosp North Ward,HCL NURSING,HNSI0000881,4901.18
Department of Health,Leicestershire Partnership NHS Trust,21/12/21,NURSE - BAND 5 - AGENCY,H&B Comm Hosp North Ward,HCL NURSING,HNSI0000881,2120.37
Department of Health,Leicestershire Partnership NHS Trust,21/12/21,NURSE - BAND 2 - AGENCY,Lough Swithland Ward,HCL NURSING,HNSI0000881,742.85
Department of Health,Leicestershire Partnership NHS Trust,21/12/21,NURSE - BAND 5 - AGENCY,Lough Swithland Ward,HCL NURSING,HNSI0000881,2947.96
Department of Health,Leicestershire Partnership NHS Trust,21/12/21,NURSE - BAND 2 - AGENCY,Rutland Ward Nursing,HCL NURSING,HNSI0000881,1243.98
Department of Health,Leicestershire Partnership NHS Trust,21/12/21,NURSE - BAND 5 - AGENCY,Rutland Ward Nursing,HCL NURSING,HNSI0000881,1697.85
Department of Health,Leicestershire Partnership NHS Trust,21/12/21,NURSE - BAND 2 - AGENCY,St Lukes Stroke Ward,HCL NURSING,HNSI0000881,681.46
Department of Health,Leicestershire Partnership NHS Trust,21/12/21,NURSE - BAND 2 - AGENCY,St Lukes Ward 3,HCL NURSING,HNSI0000881,1149.62
Department of Health,Leicestershire Partnership NHS Trust,21/12/21,NURSE - BAND 5 - AGENCY,St Lukes Ward 3,HCL NURSING,HNSI0000881,2285.87
Department of Health,Leicestershire Partnership NHS Trust,21/12/21,NURSE - BAND 2 - AGENCY,Wakerley Ward,HCL NURSING,HNSI0000881,3543.75
Department of Health,Leicestershire Partnership NHS Trust,21/12/21,NURSE - BAND 5 - AGENCY,Wakerley Ward,HCL NURSING,HNSI0000881,9929.87
Department of Health,Leicestershire Partnership NHS Trust,21/12/21,Med GP Trainees,Medical Trainees,ST.HELENS & KNOWSLEY NHS TRUST,16810198,75000.00
Department of Health,Leicestershire Partnership NHS Trust,21/12/21,Services / Recharges from NHS Trusts,Inter Unit I & E Distribution,UHL NHS TRUST (RWE),L0256034,144923.71
Department of Health,Leicestershire Partnership NHS Trust,21/12/21,Landline Telephone Rental / Calls,"Beaumont Leys Health Centre (P94, LPT)",VIRGIN MEDIA BUSINESS,853083001/004/1221,393.77
Department of Health,Leicestershire Partnership NHS Trust,21/12/21,Landline Telephone Rental / Calls,"Bennion Centre (including Forest Grange Day Unit) (P8, LPT)",VIRGIN MEDIA BUSINESS,853083001/004/1221,7.74
Department of Health,Leicestershire Partnership NHS Trust,21/12/21,Landline Telephone Rental / Calls,"Bradgate Unit (including Glenvale day Unit) (P7, LPT)",VIRGIN MEDIA BUSINESS,853083001/004/1221,8129.42
Department of Health,Leicestershire Partnership NHS Trust,21/12/21,Landline Telephone Rental / Calls,Braunstone Health and Social Care Centre (Part) (PROPCO),VIRGIN MEDIA BUSINESS,853083001/004/1221,1086.10
Department of Health,Leicestershire Partnership NHS Trust,21/12/21,Landline Telephone Rental / Calls,Bridge Park Plaza - First Floor (LPT),VIRGIN MEDIA BUSINESS,853083001/004/1221,3831.82
Department of Health,Leicestershire Partnership NHS Trust,21/12/21,Landline Telephone Rental / Calls,"Coalville Community Hospital (P138, LPT)",VIRGIN MEDIA BUSINESS,853083001/004/1221,1418.36
Department of Health,Leicestershire Partnership NHS Trust,21/12/21,Landline Telephone Rental / Calls,"Coalville Health Centre (P121, LPT)",VIRGIN MEDIA BUSINESS,853083001/004/1221,156.53
Department of Health,Leicestershire Partnership NHS Trust,21/12/21,Landline Telephone Rental / Calls,County Hall,VIRGIN MEDIA BUSINESS,853083001/004/1221,6551.71
Department of Health,Leicestershire Partnership NHS Trust,21/12/21,Landline Telephone Rental / Calls,Estates & Facilities Central,VIRGIN MEDIA BUSINESS,853083001/004/1221,7.60
Department of Health,Leicestershire Partnership NHS Trust,21/12/21,Landline Telephone Rental / Calls,"Evington Centre (P6, LPT)",VIRGIN MEDIA BUSINESS,853083001/004/1221,1661.21
Department of Health,Leicestershire Partnership NHS Trust,21/12/21,Landline Telephone Rental / Calls,HIS,VIRGIN MEDIA BUSINESS,853083001/004/1221,3014.35
Department of Health,Leicestershire Partnership NHS Trust,21/12/21,Landline Telephone Rental / Calls,"Hawthorne Centre - Coalville (P14, LPT)",VIRGIN MEDIA BUSINESS,853083001/004/1221,504.00
Department of Health,Leicestershire Partnership NHS Trust,21/12/21,Landline Telephone Rental / Calls,"Hinckley and Bosworth Community Hospital (Sunnyside) (P133, LPT)",VIRGIN MEDIA BUSINESS,853083001/004/1221,1024.55
Department of Health,Leicestershire Partnership NHS Trust,21/12/21,Landline Telephone Rental / Calls,Hood Park Leisure Centre Clinic,VIRGIN MEDIA BUSINESS,853083001/004/1221,24.26
Department of Health,Leicestershire Partnership NHS Trust,21/12/21,Landline Telephone Rental / Calls,"Hynca Lodge (P33, LPT)",VIRGIN MEDIA BUSINESS,853083001/004/1221,366.72
Department of Health,Leicestershire Partnership NHS Trust,21/12/21,Landline Telephone Rental / Calls,"Legion House, Ashby",VIRGIN MEDIA BUSINESS,853083001/004/1221,48.73
Department of Health,Leicestershire Partnership NHS Trust,21/12/21,Landline Telephone Rental / Calls,"Loughborough Hospital (P136, LPT)",VIRGIN MEDIA BUSINESS,853083001/004/1221,4542.44
Department of Health,Leicestershire Partnership NHS Trust,21/12/21,Landline Telephone Rental / Calls,Mawson House (LPT),VIRGIN MEDIA BUSINESS,853083001/004/1221,449.98
Department of Health,Leicestershire Partnership NHS Trust,21/12/21,Landline Telephone Rental / Calls,Merlyn Vaz Centre (CHP),VIRGIN MEDIA BUSINESS,853083001/004/1221,1440.00
Department of Health,Leicestershire Partnership NHS Trust,21/12/21,Landline Telephone Rental / Calls,"Mett Centre (P49, LPT)",VIRGIN MEDIA BUSINESS,853083001/004/1221,82.26
Department of Health,Leicestershire Partnership NHS Trust,21/12/21,Landline Telephone Rental / Calls,NSPCC Training Cente,VIRGIN MEDIA BUSINESS,853083001/004/1221,159.96
Department of Health,Leicestershire Partnership NHS Trust,21/12/21,Landline Telephone Rental / Calls,New Parks Health Centre (PROPCO),VIRGIN MEDIA BUSINESS,853083001/004/1221,1506.44
Department of Health,Leicestershire Partnership NHS Trust,21/12/21,Landline Telephone Rental / Calls,"OSL House (P54, LPT)",VIRGIN MEDIA BUSINESS,853083001/004/1221,961.34
Department of Health,Leicestershire Partnership NHS Trust,21/12/21,Landline Telephone Rental / Calls,"Orchard Resource Centre (P15, LPT)",VIRGIN MEDIA BUSINESS,853083001/004/1221,623.71
Department of Health,Leicestershire Partnership NHS Trust,21/12/21,Landline Telephone Rental / Calls,Pasley Road Health Centre (PROPCO),VIRGIN MEDIA BUSINESS,853083001/004/1221,99.92
Department of Health,Leicestershire Partnership NHS Trust,21/12/21,Landline Telephone Rental / Calls,"Prince Philip House (P96, LPT)",VIRGIN MEDIA BUSINESS,853083001/004/1221,1692.96
Department of Health,Leicestershire Partnership NHS Trust,21/12/21,Landline Telephone Rental / Calls,Rushey Mead Health Centre (PROPCO),VIRGIN MEDIA BUSINESS,853083001/004/1221,77.83
Department of Health,Leicestershire Partnership NHS Trust,21/12/21,Landline Telephone Rental / Calls,"Shepshed Health Centre (P123, LPT)",VIRGIN MEDIA BUSINESS,853083001/004/1221,11.00
Department of Health,Leicestershire Partnership NHS Trust,21/12/21,Landline Telephone Rental / Calls,"Springfield Road Health Centre (P92, LPT)",VIRGIN MEDIA BUSINESS,853083001/004/1221,332.87
Department of Health,Leicestershire Partnership NHS Trust,21/12/21,Landline Telephone Rental / Calls,"St Peters Health Center (Part 1st and 2nd floors) (P66, LPT)",VIRGIN MEDIA BUSINESS,853083001/004/1221,1804.50
Department of Health,Leicestershire Partnership NHS Trust,21/12/21,Landline Telephone Rental / Calls,"Stewart House (P61, LPT)",VIRGIN MEDIA BUSINESS,853083001/004/1221,-6.71
Department of Health,Leicestershire Partnership NHS Trust,21/12/21,Landline Telephone Rental / Calls,"Swithland House - London Road 352 (P44, LPT)",VIRGIN MEDIA BUSINESS,853083001/004/1221,268.30
Department of Health,Leicestershire Partnership NHS Trust,21/12/21,Landline Telephone Rental / Calls,"The Cedars (P19, LPT)",VIRGIN MEDIA BUSINESS,853083001/004/1221,744.13
Department of Health,Leicestershire Partnership NHS Trust,21/12/21,Landline Telephone Rental / Calls,"The Willows - Cordelia Close (P22, LPT)",VIRGIN MEDIA BUSINESS,853083001/004/1221,443.06
Department of Health,Leicestershire Partnership NHS Trust,21/12/21,Landline Telephone Rental / Calls,"Valentine Centre (P3, LPT)",VIRGIN MEDIA BUSINESS,853083001/004/1221,1860.54
Department of Health,Leicestershire Partnership NHS Trust,21/12/21,Landline Telephone Rental / Calls,Warren Park Way 25 (PROPCO),VIRGIN MEDIA BUSINESS,853083001/004/1221,711.76
Department of Health,Leicestershire Partnership NHS Trust,21/12/21,Landline Telephone Rental / Calls,"Westcotes Group -Westcotes House (P78, LPT)",VIRGIN MEDIA BUSINESS,853083001/004/1221,1513.24
Department of Health,Leicestershire Partnership NHS Trust,21/12/21,Landline Telephone Rental / Calls,"Winstanley Drive Health Centre (P8, LPT)",VIRGIN MEDIA BUSINESS,853083001/004/1221,411.02
Department of Health,Leicestershire Partnership NHS Trust,21/12/21,Healthcare Services / Recharges from Non-NHS Bodies,COVID vaccination for Children and Young people,MERRIDALE MEDICAL CENTRE,01,47126.25
Department of Health,Leicestershire Partnership NHS Trust,22/12/21,Leased / Hired Vehicles,Assertive Outreach Services,AUTOMOTIVE LEASING LTD,509341891,785.68
Department of Health,Leicestershire Partnership NHS Trust,22/12/21,Leased / Hired Vehicles,Autism,AUTOMOTIVE LEASING LTD,509341891,638.96
Department of Health,Leicestershire Partnership NHS Trust,22/12/21,Prep_ LT1y -Prepayments Lease Cars,Balance Sheet Collection,AUTOMOTIVE LEASING LTD,509341891,33724.20
Department of Health,Leicestershire Partnership NHS Trust,22/12/21,Trade_Drs_LT1y -Charitable  Funds Contra Account,Balance Sheet Collection,AUTOMOTIVE LEASING LTD,509341891,30.00
Department of Health,Leicestershire Partnership NHS Trust,22/12/21,Trade_Drs_LT1y -Lease Cars Invoicing Contrl Ac.,Balance Sheet Collection,AUTOMOTIVE LEASING LTD,509341891,513.25
Department of Health,Leicestershire Partnership NHS Trust,22/12/21,VAT_Drs _ LT1y -VAT Contracted Out Services Input Tax,Balance Sheet Collection,AUTOMOTIVE LEASING LTD,509341891,508.22
Department of Health,Leicestershire Partnership NHS Trust,22/12/21,Leased / Hired Vehicles,CAMHS Outpatients,AUTOMOTIVE LEASING LTD,509341891,10.00
Department of Health,Leicestershire Partnership NHS Trust,22/12/21,Leased / Hired Vehicles,COVID 19,AUTOMOTIVE LEASING LTD,509341891,472.36
Department of Health,Leicestershire Partnership NHS Trust,22/12/21,Leased / Hired Vehicles,Children's Speech Therapy,AUTOMOTIVE LEASING LTD,509341891,377.12
Department of Health,Leicestershire Partnership NHS Trust,22/12/21,Leased / Hired Vehicles,Children’s Community Phlebotomy,AUTOMOTIVE LEASING LTD,509341891,15.00
Department of Health,Leicestershire Partnership NHS Trust,22/12/21,Leased / Hired Vehicles,City West CMHT MHSOP,AUTOMOTIVE LEASING LTD,509341891,15.00
Department of Health,Leicestershire Partnership NHS Trust,22/12/21,Leased / Hired Vehicles,County 0-19 South Charnwood HV,AUTOMOTIVE LEASING LTD,509341891,15.00
Department of Health,Leicestershire Partnership NHS Trust,22/12/21,Leased / Hired Vehicles,Crisis Resolution,AUTOMOTIVE LEASING LTD,509341891,731.82
Department of Health,Leicestershire Partnership NHS Trust,22/12/21,Leased / Hired Vehicles,Crisis Response and Home Treatment,AUTOMOTIVE LEASING LTD,509341891,20.00
Department of Health,Leicestershire Partnership NHS Trust,22/12/21,Leased / Hired Vehicles,East Planned Care - Blaby/Lutterworth,AUTOMOTIVE LEASING LTD,509341891,550.62
Department of Health,Leicestershire Partnership NHS Trust,22/12/21,Leased / Hired Vehicles,"East Planned Care - Melton,Syston,Rut - Therapy",AUTOMOTIVE LEASING LTD,509341891,5.00
Department of Health,Leicestershire Partnership NHS Trust,22/12/21,Leased / Hired Vehicles,Forensic Services - Community,AUTOMOTIVE LEASING LTD,509341891,486.48
Department of Health,Leicestershire Partnership NHS Trust,22/12/21,Leased / Hired Vehicles,HIS Infrastructure,AUTOMOTIVE LEASING LTD,509341891,520.71
Department of Health,Leicestershire Partnership NHS Trust,22/12/21,Leased / Hired Vehicles,Integrated Specialist Palliative Care Team,AUTOMOTIVE LEASING LTD,509341891,15.00
Department of Health,Leicestershire Partnership NHS Trust,22/12/21,Leased / Hired Vehicles,PIER Team - Early Intervention Services,AUTOMOTIVE LEASING LTD,509341891,15.00
Department of Health,Leicestershire Partnership NHS Trust,22/12/21,Leased / Hired Vehicles,School Age Immunisation and Vaccinations,AUTOMOTIVE LEASING LTD,509341891,4844.00
Department of Health,Leicestershire Partnership NHS Trust,22/12/21,Leased / Hired Vehicles,Short Breaks - Specialist Nursing,AUTOMOTIVE LEASING LTD,509341891,93.45
Department of Health,Leicestershire Partnership NHS Trust,22/12/21,Leased / Hired Vehicles,Stewart House,AUTOMOTIVE LEASING LTD,509341891,5.00
Department of Health,Leicestershire Partnership NHS Trust,22/12/21,Leased / Hired Vehicles,Support Services (Learn Dis),AUTOMOTIVE LEASING LTD,509341891,196.81
Department of Health,Leicestershire Partnership NHS Trust,22/12/21,Leased / Hired Vehicles,West Planned Care  - Hinckley Hub,AUTOMOTIVE LEASING LTD,509341891,551.25
Department of Health,Leicestershire Partnership NHS Trust,22/12/21,Other Non-Medical Supplies & Services,"Inpatients, Crisis & Liasion Management",LEICS CONSTABULARY,2006550,76320.00
Department of Health,Leicestershire Partnership NHS Trust,22/12/21,FP10'S,Adult City Drugs,NHS BUS SERVICES AUTHORITY,1000071550,18347.92
Department of Health,Leicestershire Partnership NHS Trust,22/12/21,FP10'S,Adult County Drugs,NHS BUS SERVICES AUTHORITY,1000071550,23354.23
Department of Health,Leicestershire Partnership NHS Trust,22/12/21,FP10'S,CAMHS Outpatients,NHS BUS SERVICES AUTHORITY,1000071550,11506.79
Department of Health,Leicestershire Partnership NHS Trust,22/12/21,FP10'S,Community Paediatrics,NHS BUS SERVICES AUTHORITY,1000071550,7675.21
Department of Health,Leicestershire Partnership NHS Trust,22/12/21,FP10'S,Dementia Related Drugs and Investigations,NHS BUS SERVICES AUTHORITY,1000071550,3930.04
Department of Health,Leicestershire Partnership NHS Trust,22/12/21,FP10'S,Eating Disorders Outpatient Service,NHS BUS SERVICES AUTHORITY,1000071550,945.10
Department of Health,Leicestershire Partnership NHS Trust,22/12/21,FP10'S,Forensic Services - Community,NHS BUS SERVICES AUTHORITY,1000071550,67.38
Department of Health,Leicestershire Partnership NHS Trust,22/12/21,FP10'S,LOROS Pharmacy,NHS BUS SERVICES AUTHORITY,1000071550,425.21
Department of Health,Leicestershire Partnership NHS Trust,22/12/21,FP10'S,Liason Psychiatry Service,NHS BUS SERVICES AUTHORITY,1000071550,85.36
Department of Health,Leicestershire Partnership NHS Trust,22/12/21,FP10'S,Lough Swithland Ward,NHS BUS SERVICES AUTHORITY,1000071550,4.03
Department of Health,Leicestershire Partnership NHS Trust,22/12/21,FP10'S,Mental Health Liaison Team,NHS BUS SERVICES AUTHORITY,1000071550,1.94
Department of Health,Leicestershire Partnership NHS Trust,22/12/21,FP10'S,PIER Team - Early Intervention Services,NHS BUS SERVICES AUTHORITY,1000071550,10896.11
Department of Health,Leicestershire Partnership NHS Trust,22/12/21,FP10'S,Snr Med Staff (Inc Med Reps),NHS BUS SERVICES AUTHORITY,1000071550,7307.24
Department of Health,Leicestershire Partnership NHS Trust,22/12/21,Rent,Bridge Park Plaza - First Floor (LPT),FISHER HARG PROCT LTD,655928,80507.52
